Workbook

Sheet Начало
B1: ОБ ЭТОМ ШАБЛОНЕ
B2: Создайте бюджет канального маркетинга с помощью этого шаблона.
B3: Введите ожидаемые продажи для каждого месяца и другие подробные сведения в таблице.
B4: Итоговые суммы автоматически вычисляются, а спарклайны — обновляются.
B5: Примечание.
B6: В столбце A листа БЮДЖЕТ КАНАЛЬНОГО МАРКЕТИНГА содержатся дополнительные инструкции. Их текст намерено скрыт. Чтобы удалить этот текст, выделите столбец A и нажмите клавишу DELETE. Чтобы отобразить текст, выделите столбец A и измените цвет шрифта.
B7: Чтобы получить дополнительные сведения о таблице, щелкните в ней ячейку, затем нажмите клавиши SHIFT+F10, выберите пункт «Таблица», а затем — «Замещающий текст».

Sheet Бюджет канального маркетинга
A1: Создайте бюджет канального маркетинга на этом листе. Ячейка справа содержит заголовок листа. Ячейки в этом столбце содержат полезные инструкции. Нажмите СТРЕЛКУ ВНИЗ, чтобы начать. Ячейка справа содержит заголовок листа. | B1: БЮДЖЕТ КАНАЛЬНОГО МАРКЕТИНГА
A2: В этой строке в ячейках диапазона C2:O2 находятся заголовки столбцов «Ставка» и «Месяц», а в ячейке Q2 — заголовок «Итог». | C2: Ставка | D2: Месяц 1 | E2: Месяц 2 | F2: Месяц 3 | G2: Месяц 4 | H2: Месяц 5 | I2: Месяц 6 | J2: Месяц 7 | K2: Месяц 8 | L2: Месяц 9 | M2: Месяц 10 | N2: Месяц 11 | O2: Месяц 12 | Q2: Итог
A3: В ячейке справа расположены итог ожидаемых продаж. В ячейках диапазона D3:O3 введите ожидаемые продажи за каждый месяц. В ячейке Q3 автоматически вычисляется итог. | B3: ИТОГ ОЖИДАЕМЫХ ПРОДАЖ (000) ₽ | D3: 750 | E3: 200 | F3: 500 | G3: 1,500 | H3: 1,200 | I3: 1,500 | J3: 1,500 | K3: 1,800 | L3: 2,000 | M3: 2,000 | N3: 2,000 | O3: 2,000 | Q3: =SUM(D3:O3) -> 16,950
A4: Введите подробные сведения в таблице «Персонал», начиная с ячейки справа. Итого по персоналу за каждый месяц вычисляется автоматически внизу таблицы, а итог за год — в ячейке Q9. Спарклайн обновляется автоматически в ячейке S9. Следующие инструкции указаны в ячейке A10. | B4: Персонал | C4: Ставка | D4: Месяц 1 | E4: Месяц 2 | F4: Месяц 3 | G4: Месяц 4 | H4: Месяц 5 | I4: Месяц 6 | J4: Месяц 7 | K4: Месяц 8 | L4: Месяц 9 | M4: Месяц 10 | N4: Месяц 11 | O4: Месяц 12
B5: ПЕРСОНАЛ (% ОТ ИТОГОВЫХ ПРОДАЖ) | D5: =D11+D33+D41+D48 -> 110% | E5: 110% | F5: 110% | G5: 110% | H5: 110% | I5: 110% | J5: 110% | K5: 110% | L5: 85% | M5: 85% | N5: 85% | O5: 85%
B6: Персонал — численность | C6: 5 | D6: =+$C$6 -> 5 | E6: 5 | F6: 5 | G6: 5 | H6: 5 | I6: 5 | J6: 5 | K6: 5 | L6: 5 | M6: 5 | N6: 5 | O6: 5
B7: Персонал — цена | D7: =$C$6*D6 -> 25.00 | E7: 25.00 | F7: 25.00 | G7: 25.00 | H7: 25.00 | I7: 25.00 | J7: 25.00 | K7: 25.00 | L7: 25.00 | M7: 25.00 | N7: 25.00 | O7: 25.00 | Q7: =SUM('Бюджет канального маркетинга'!$D7:$O7) -> 300.00
B8: Комиссия | C8: 0.10% | D8: =D3*$C$8 -> 0.75 | E8: 0.20 | F8: 0.50 | G8: 1.50 | H8: 1.20 | I8: 1.50 | J8: 1.50 | K8: 1.80 | L8: 2.00 | M8: 2.00 | N8: 2.00 | O8: 2.00 | Q8: =SUM('Бюджет канального маркетинга'!$D8:$O8) -> 16.95
B9: Итого по персоналу (000) ₽ | D9: =SUM(D7:D8) -> 25.75 | E9: =SUM(E7:E8) -> 25.20 | F9: 25.50 | G9: 26.50 | H9: 26.20 | I9: 26.50 | J9: 26.50 | K9: 26.80 | L9: 27.00 | M9: 27.00 | N9: 27.00 | O9: 27.00 | Q9: =SUM(Q7:Q8) -> 316.95
A10: Введите подробные сведения в таблице «Прямой маркетинг», начиная с ячейки справа. Итого по телемаркетингу для каждого месяца вычисляется автоматически внизу таблицы, а итог за год — в ячейке Q17. Спарклайн обновляется автоматически в ячейке S17. Следующие инструкции указаны в ячейке A18. | B10: Прямой маркетинг | C10: Ставка | D10: Месяц 1 | E10: Месяц 2 | F10: Месяц 3 | G10: Месяц 4 | H10: Месяц 5 | I10: Месяц 6 | J10: Месяц 7 | K10: Месяц 8 | L10: Месяц 9 | M10: Месяц 10 | N10: Месяц 11 | O10: Месяц 12
B11: ПРЯМОЙ МАРКЕТИНГ (% ОТ ИТОГОВЫХ ПРОДАЖ) | D11: 100% | E11: 100% | F11: 75% | G11: 40% | H11: 33% | I11: 25% | J11: 20% | K11: 10% | L11: 5% | M11: 5% | N11: 5% | O11: 5%
B12: Телемаркетинг (% от прямых продаж) | D12: 100% | E12: 50% | F12: 50% | G12: 50% | H12: 50% | I12: 50% | J12: 50% | K12: 50% | L12: 50% | M12: 50% | N12: 50% | O12: 50%
B13: Персонал — численность | C13: 3 | D13: =$C$13*D12 -> 3 | E13: 1.5 | F13: 1.5 | G13: 1.5 | H13: 1.5 | I13: 1.5 | J13: 1.5 | K13: 1.5 | L13: 1.5 | M13: 1.5 | N13: 1.5 | O13: 1.5 | Q13: =SUM('Бюджет канального маркетинга'!$D13:$O13) -> 19.50
B14: Инфраструктура | D14: 25 | E14: 10 | F14: 25 | G14: 10 | H14: 25 | I14: 10 | J14: 25 | K14: 10 | L14: 25 | M14: 10 | N14: 25 | O14: 10 | Q14: =SUM('Бюджет канального маркетинга'!$D14:$O14) -> 210.00
B15: Комиссия | C15: 0.10% | D15: =$C$15*D3*D11*D12 -> 0.75 | E15: 0.10 | F15: 0.19 | G15: 0.30 | H15: 0.20 | I15: 0.19 | J15: 0.15 | K15: 0.09 | L15: 0.05 | M15: 0.05 | N15: 0.05 | O15: 0.05 | Q15: =SUM('Бюджет канального маркетинга'!$D15:$O15) -> 2.16
B16: Обучение | D16: 25 | E16: 10 | F16: 25 | G16: 10 | H16: 25 | I16: 10 | J16: 25 | K16: 10 | L16: 25 | M16: 10 | N16: 25 | O16: 10 | Q16: =SUM('Бюджет канального маркетинга'!$D16:$O16) -> 210.00
B17: Итого по телемаркетингу (000) ₽ | D17: =SUM(D13:D16) -> 53.75 | E17: =SUM(E13:E16) -> 21.60 | F17: =SUM(F13:F16) -> 51.69 | G17: 21.80 | H17: 51.70 | I17: 21.69 | J17: 51.65 | K17: 21.59 | L17: 51.55 | M17: 21.55 | N17: 51.55 | O17: 21.55 | Q17: =SUM(Q13:Q16) -> 441.66
A18: Введите подробные сведения в таблице «Интернет-маркетинг», начиная с ячейки справа. Итого по Интернет-маркетингу за каждый месяц вычисляется автоматически внизу таблицы, а итог за год — в ячейке Q24. Спарклайн обновляется автоматически в ячейке S24. Следующие инструкции указаны в ячейке A25. | B18: Интернет-маркетинг | C18: Ставка | D18: Месяц 1 | E18: Месяц 2 | F18: Месяц 3 | G18: Месяц 4 | H18: Месяц 5 | I18: Месяц 6 | J18: Месяц 7 | K18: Месяц 8 | L18: Месяц 9 | M18: Месяц 10 | N18: Месяц 11 | O18: Месяц 12
B19: Интернет-маркетинг (% от прямых продаж) | D19: 25% | E19: 25% | F19: 25% | G19: 25% | H19: 25% | I19: 25% | J19: 25% | K19: 25% | L19: 25% | M19: 25% | N19: 25% | O19: 25%
B20: Персонал — численность | C20: 1 | D20: =$C$20*D19 -> 0.25 | E20: 0.25 | F20: 0.25 | G20: 0.25 | H20: 0.25 | I20: 0.25 | J20: 0.25 | K20: 0.25 | L20: 0.25 | M20: 0.25 | N20: 0.25 | O20: 0.25 | Q20: =SUM('Бюджет канального маркетинга'!$D20:$O20) -> 3.00
B21: Разработка веб-сайта (разовый платеж) | D21: 500 | Q21: =SUM('Бюджет канального маркетинга'!$D21:$O21) -> 500.00
B22: Хостинг | D22: 10 | E22: 10 | F22: 10 | G22: 10 | H22: 10 | I22: 10 | J22: 10 | K22: 10 | L22: 10 | M22: 10 | N22: 10 | O22: 10 | Q22: =SUM('Бюджет канального маркетинга'!$D22:$O22) -> 120.00
B23: Поддержка и обслуживание | D23: 25 | N23: 25 | Q23: =SUM('Бюджет канального маркетинга'!$D23:$O23) -> 50.00
B24: Итого по Интернет-маркетингу (000) ₽ | D24: =SUM(D20:D23) -> 535.25 | E24: =SUM(E20:E23) -> 10.25 | F24: 10.25 | G24: 10.25 | H24: 10.25 | I24: 10.25 | J24: 10.25 | K24: 10.25 | L24: 10.25 | M24: 10.25 | N24: 35.25 | O24: 10.25 | Q24: =SUM(Q20:Q23) -> 673.00
A25: Введите подробные сведения в таблице «Прямая почтовая рассылка» в ячейке справа. Итого по прямым почтовым рассылкам за каждый месяц вычисляется автоматически внизу таблицы, а итог за год — в ячейке Q30. Следующие инструкции указаны в ячейке A31. | B25: Прямая почтовая рассылка | C25: Ставка | D25: Месяц 1 | E25: Месяц 2 | F25: Месяц 3 | G25: Месяц 4 | H25: Месяц 5 | I25: Месяц 6 | J25: Месяц 7 | K25: Месяц 8 | L25: Месяц 9 | M25: Месяц 10 | N25: Месяц 11 | O25: Месяц 12
B26: Прямая почтовая рассылка (% от прямых продаж)
B27: Персонал — цена | Q27: =SUM('Бюджет канального маркетинга'!$D27:$O27) -> 0.00
B28: Расходные материалы | D28: 1000 | E28: 1000 | F28: 1000 | G28: 1000 | H28: 1000 | I28: 1000 | J28: 1000 | K28: 1000 | L28: 1000 | M28: 1000 | N28: 1000 | O28: 1000 | Q28: =SUM('Бюджет канального маркетинга'!$D28:$O28) -> 12,000.00
B29: Почтовые расходы | D29: 250 | E29: 250 | F29: 250 | G29: 250 | H29: 250 | I29: 250 | J29: 250 | K29: 250 | L29: 250 | M29: 250 | N29: 250 | O29: 250 | Q29: =SUM('Бюджет канального маркетинга'!$D29:$O29) -> 3,000.00
B30: Итого по прямым почтовым рассылкам (000) ₽ | D30: =SUM(D27:D29) -> 1,250.00 | E30: =SUM(E27:E29) -> 1,250.00 | F30: 1,250.00 | G30: 1,250.00 | H30: 1,250.00 | I30: 1,250.00 | J30: 1,250.00 | K30: 1,250.00 | L30: 1,250.00 | M30: 1,250.00 | N30: 1,250.00 | O30: 1,250.00 | Q30: =SUM(Q27:Q29) -> 15,000.00
A31: В этой строке итого по прямому маркетингу вычисляется автоматически в ячейках диапазона D31:O31, а годовой итог — в ячейке Q31. Спарклайн обновляется автоматически в ячейке S31. | B31: Итого по прямому маркетингу (000) ₽ | D31: =SUM(ПрямаяПочтоваяРассылка[[#Totals],[Месяц 1]],ИнтернетМаркетинг[[#Totals],[Месяц 1]],ПрямойМаркетинг[[#Totals],[Месяц 1]]) -> 1,839.00 | E31: =SUM(ПрямаяПочтоваяРассылка[[#Totals],[Месяц 2]],ИнтернетМаркетинг[[#Totals],[Месяц 2]],ПрямойМаркетинг[[#Totals],[Месяц 2]]) -> 1,281.85 | F31: =SUM(ПрямаяПочтоваяРассылка[[#Totals],[Месяц 3]],ИнтернетМаркетинг[[#Totals],[Месяц 3]],ПрямойМаркетинг[[#Totals],[Месяц 3]]) -> 1,311.94 | G31: =SUM(ПрямаяПочтоваяРассылка[[#Totals],[Месяц 4]],ИнтернетМаркетинг[[#Totals],[Месяц 4]],ПрямойМаркетинг[[#Totals],[Месяц 4]]) -> 1,282.05 | H31: =SUM(ПрямаяПочтоваяРассылка[[#Totals],[Месяц 5]],ИнтернетМаркетинг[[#Totals],[Месяц 5]],ПрямойМаркетинг[[#Totals],[Месяц 5]]) -> 1,311.95 | I31: =SUM(ПрямаяПочтоваяРассылка[[#Totals],[Месяц 6]],ИнтернетМаркетинг[[#Totals],[Месяц 6]],ПрямойМаркетинг[[#Totals],[Месяц 6]]) -> 1,281.94 | J31: =SUM(ПрямаяПочтоваяРассылка[[#Totals],[Месяц 7]],ИнтернетМаркетинг[[#Totals],[Месяц 7]],ПрямойМаркетинг[[#Totals],[Месяц 7]]) -> 1,311.90 | K31: =SUM(ПрямаяПочтоваяРассылка[[#Totals],[Месяц 8]],ИнтернетМаркетинг[[#Totals],[Месяц 8]],ПрямойМаркетинг[[#Totals],[Месяц 8]]) -> 1,281.84 | L31: =SUM(ПрямаяПочтоваяРассылка[[#Totals],[Месяц 9]],ИнтернетМаркетинг[[#Totals],[Месяц 9]],ПрямойМаркетинг[[#Totals],[Месяц 9]]) -> 1,311.80 | M31: =SUM(ПрямаяПочтоваяРассылка[[#Totals],[Месяц 10]],ИнтернетМаркетинг[[#Totals],[Месяц 10]],ПрямойМаркетинг[[#Totals],[Месяц 10]]) -> 1,281.80 | N31: =SUM(ПрямаяПочтоваяРассылка[[#Totals],[Месяц 11]],ИнтернетМаркетинг[[#Totals],[Месяц 11]],ПрямойМаркетинг[[#Totals],[Месяц 11]]) -> 1,336.80 | O31: =SUM(ПрямаяПочтоваяРассылка[[#Totals],[Месяц 12]],ИнтернетМаркетинг[[#Totals],[Месяц 12]],ПрямойМаркетинг[[#Totals],[Месяц 12]]) -> 1,281.80 | Q31: =SUM(Q30,Q24,Q17,Q9) -> 16,431.61
A32: Введите подробные сведения в таблицах «Агенты и брокеры» в ячейке справа. Итого по агентам и брокерам за каждый месяц вычисляется автоматически внизу таблицы, а итог за год — в ячейке Q39. Спарклайн обновляется автоматически в ячейке S39. Следующие инструкции указаны в ячейке A40. | B32: Агенты и брокеры | C32: Ставка | D32: Месяц 1 | E32: Месяц 2 | F32: Месяц 3 | G32: Месяц 4 | H32: Месяц 5 | I32: Месяц 6 | J32: Месяц 7 | K32: Месяц 8 | L32: Месяц 9 | M32: Месяц 10 | N32: Месяц 11 | O32: Месяц 12
B33: АГЕНТЫ И БРОКЕРЫ (% ОТ ИТОГОВЫХ ПРОДАЖ) | D33: 10% | E33: 10% | F33: 10% | G33: 10% | H33: 10% | I33: 10% | J33: 10% | K33: 10% | L33: 10% | M33: 10% | N33: 10% | O33: 10%
B34: Коммуникации | D34: 50 | E34: 50 | F34: 50 | G34: 50 | H34: 50 | I34: 50 | J34: 50 | K34: 50 | L34: 50 | M34: 50 | N34: 50 | O34: 50 | Q34: =SUM('Бюджет канального маркетинга'!$D34:$O34) -> 600.00
B35: Обучение | D35: 250.00 | E35: 250.00 | F35: 250.00 | G35: 250.00 | H35: 250.00 | I35: 250.00 | J35: 250.00 | K35: 250.00 | L35: 250.00 | M35: 250.00 | N35: 250.00 | O35: 250.00 | Q35: =SUM('Бюджет канального маркетинга'!$D35:$O35) -> 3,000.00
B36: Акции | D36: 600.00 | E36: 600.00 | F36: 600.00 | G36: 600.00 | H36: 600.00 | I36: 600.00 | J36: 600.00 | K36: 600.00 | L36: 600.00 | M36: 600.00 | N36: 600.00 | O36: 600.00 | Q36: =SUM('Бюджет канального маркетинга'!$D36:$O36) -> 7,200.00
B37: Скидки | C37: 10.00% | D37: =D3*D33*$C$37 -> 7.50 | E37: 2.00 | F37: 5.00 | G37: 15.00 | H37: 12.00 | I37: 15.00 | J37: 15.00 | K37: 18.00 | L37: 20.00 | M37: 20.00 | N37: 20.00 | O37: 20.00 | Q37: =SUM('Бюджет канального маркетинга'!$D37:$O37) -> 169.50
B38: Комиссия (% от продаж агентов) | C38: 10.00% | D38: =D3*D33*$C$38 -> 7.50 | E38: 2.00 | F38: 5.00 | G38: 15.00 | H38: 12.00 | I38: 15.00 | J38: 15.00 | K38: 18.00 | L38: 20.00 | M38: 20.00 | N38: 20.00 | O38: 20.00 | Q38: =SUM('Бюджет канального маркетинга'!$D38:$O38) -> 169.50
B39: Итого по агентам и брокерам (000) ₽ | D39: =SUM(D34:D38) -> 915.00 | E39: =SUM(E34:E38) -> 904.00 | F39: 910.00 | G39: 930.00 | H39: 924.00 | I39: 930.00 | J39: 930.00 | K39: 936.00 | L39: 940.00 | M39: 940.00 | N39: 940.00 | O39: 940.00 | Q39: =SUM(Q34:Q38) -> 11,139.00
A40: Введите сведения в таблице «Дистрибьюторы», начиная с ячейки справа. Итого по дистрибьюторам за каждый месяц вычисляется автоматически внизу таблицы, а итог за год — в ячейке Q46. Спарклайн обновляется автоматически в ячейке S46. Следующие инструкции указаны в ячейке A47. | B40: Дистрибьюторы | C40: Ставка | D40: Месяц 1 | E40: Месяц 2 | F40: Месяц 3 | G40: Месяц 4 | H40: Месяц 5 | I40: Месяц 6 | J40: Месяц 7 | K40: Месяц 8 | L40: Месяц 9 | M40: Месяц 10 | N40: Месяц 11 | O40: Месяц 12
B41: ДИСТРИБЬЮТОРЫ (% ОТ ИТОГОВЫХ ПРОДАЖ) | D41: 0% | E41: 0% | F41: 0% | G41: 0% | H41: 0% | I41: 15% | J41: 20% | K41: 40% | L41: 40% | M41: 40% | N41: 40% | O41: 40%
B42: Коммуникации | D42: 50 | E42: 50 | F42: 50 | G42: 50 | H42: 50 | I42: 50 | J42: 50 | K42: 50 | L42: 50 | M42: 50 | N42: 50 | O42: 50 | Q42: =SUM('Бюджет канального маркетинга'!$D42:$O42) -> 600.00
B43: Обучение | D43: 250.00 | E43: 250.00 | F43: 250.00 | G43: 250.00 | H43: 250.00 | I43: 250.00 | J43: 250.00 | K43: 250.00 | L43: 250.00 | M43: 250.00 | N43: 250.00 | O43: 250.00 | Q43: =SUM(Дистрибьюторы[[#This Row],[Месяц 1]:[Месяц 12]]) -> 3,000.00
B44: Акции | D44: 600.00 | E44: 600.00 | F44: 600.00 | G44: 600.00 | H44: 600.00 | I44: 600.00 | J44: 600.00 | K44: 600.00 | L44: 600.00 | M44: 600.00 | N44: 600.00 | O44: 600.00 | Q44: =SUM(Дистрибьюторы[[#This Row],[Месяц 1]:[Месяц 12]]) -> 7,200.00
B45: Комиссионные и скидки (% от продаж дистрибьютеров) | C45: 15.00% | D45: =D3*D41*$C$45 -> 0 | E45: 0 | F45: 0 | G45: 0 | H45: 0 | I45: 33.75 | J45: 45 | K45: 108 | L45: 120 | M45: 120 | N45: 120 | O45: 120 | Q45: =SUM(Дистрибьюторы[[#This Row],[Месяц 1]:[Месяц 12]]) -> 666.75
B46: Итого по дистрибьюторам (000) ₽ | D46: =SUM(D42:D45) -> 900.00 | E46: =SUM(E42:E45) -> 900.00 | F46: 900.00 | G46: 900.00 | H46: 900.00 | I46: 933.75 | J46: 945.00 | K46: 1,008.00 | L46: 1,020.00 | M46: 1,020.00 | N46: 1,020.00 | O46: 1,020.00 | Q46: =SUM(Q42:Q45) -> 11,466.75
A47: Введите сведения в таблице «Розничные продавцы», начиная с ячейки справа. Итого по розничным продажам за каждый месяц вычисляется автоматически внизу таблицы, а итог за год — в ячейке Q53. Спарклайн обновляется автоматически в ячейке S53. Следующая инструкция находится в ячейке A54. | B47: Розничные продажи | C47: Ставка | D47: Месяц 1 | E47: Месяц 2 | F47: Месяц 3 | G47: Месяц 4 | H47: Месяц 5 | I47: Месяц 6 | J47: Месяц 7 | K47: Месяц 8 | L47: Месяц 9 | M47: Месяц 10 | N47: Месяц 11 | O47: Месяц 12
B48: РОЗНИЧНЫЕ ПРОДАЖИ (% ОТ ИТОГОВЫХ ПРОДАЖ) | D48: 0% | E48: 0% | F48: 25% | G48: 60% | H48: 67% | I48: 60% | J48: 60% | K48: 50% | L48: 30% | M48: 30% | N48: 30% | O48: 30%
B49: Коммуникации | D49: 50 | E49: 50 | F49: 50 | G49: 50 | H49: 50 | I49: 50 | J49: 50 | K49: 50 | L49: 50 | M49: 50 | N49: 50 | O49: 50
B50: Обучение | D50: 250.00 | E50: 250.00 | F50: 250.00 | G50: 250.00 | H50: 250.00 | I50: 250.00 | J50: 250.00 | K50: 250.00 | L50: 250.00 | M50: 250.00 | N50: 250.00 | O50: 250.00 | Q50: =SUM('Бюджет канального маркетинга'!$D49:$O49) -> 600.00
B51: Акции | D51: 600.00 | E51: 600.00 | F51: 600.00 | G51: 600.00 | H51: 600.00 | I51: 600.00 | J51: 600.00 | K51: 600.00 | L51: 600.00 | M51: 600.00 | N51: 600.00 | O51: 600.00 | Q51: =SUM('Бюджет канального маркетинга'!$D50:$O50) -> 3,000.00
B52: Комиссионные и скидки (% от розничных продаж) | C52: 10.00% | D52: =D3*D48*$C$52 -> 0 | E52: 0 | F52: 12.5 | G52: 90 | H52: 80.4 | I52: 90 | J52: 90 | K52: 90 | L52: 60 | M52: 60 | N52: 60 | O52: 60 | Q52: =SUM('Бюджет канального маркетинга'!$D52:$O52) -> 692.90
B53: Итого по розничным продажам (000) ₽ | D53: =SUM(D49:D52) -> 900.00 | E53: =SUM(E49:E52) -> 900.00 | F53: 912.50 | G53: 990.00 | H53: 980.40 | I53: 990.00 | J53: 990.00 | K53: 990.00 | L53: 960.00 | M53: 960.00 | N53: 960.00 | O53: 960.00 | Q53: =SUM(Q50:Q52) -> 4,292.90
A54: Введите подробные сведения в таблице «Привлечение и удержание клиентов», начиная с ячейки справа. Итого по привлечению и удержанию клиентов за каждый месяц вычисляется автоматически внизу таблицы, а итог за год — в ячейке Q59. Спарклайн обновляется автоматически в ячейке S59. Следующие инструкции указаны в ячейке A60. | B54: Привлечение и удержание клиентов | C54: Ставка | D54: Месяц 1 | E54: Месяц 2 | F54: Месяц 3 | G54: Месяц 4 | H54: Месяц 5 | I54: Месяц 6 | J54: Месяц 7 | K54: Месяц 8 | L54: Месяц 9 | M54: Месяц 10 | N54: Месяц 11 | O54: Месяц 12
B55: ПРИВЛЕЧЕНИЕ И УДЕРЖАНИЕ КЛИЕНТОВ
B56: Персонал | D56: 50 | E56: 50 | F56: 50 | G56: 50 | H56: 50 | I56: 50 | J56: 50 | K56: 50 | L56: 50 | M56: 50 | N56: 50 | O56: 50 | Q56: =SUM('Бюджет канального маркетинга'!$D56:$O56) -> 600.00
B57: Коммуникации | D57: 250.00 | E57: 250.00 | F57: 250.00 | G57: 250.00 | H57: 250.00 | I57: 250.00 | J57: 250.00 | K57: 250.00 | L57: 250.00 | M57: 250.00 | N57: 250.00 | O57: 250.00 | Q57: =SUM('Бюджет канального маркетинга'!$D57:$O57) -> 3,000.00
B58: Акции и купоны | D58: 600 | E58: 600 | F58: 600 | G58: 600 | H58: 600 | I58: 600 | J58: 600 | K58: 600 | L58: 600 | M58: 600 | N58: 600 | O58: 600 | Q58: =SUM('Бюджет канального маркетинга'!$D58:$O58) -> 7,200.00
B59: Итого по привлечению и удержанию клиентов (000) ₽ | D59: =SUM(D56:D58) -> 900.00 | E59: =SUM(E56:E58) -> 900.00 | F59: 900.00 | G59: 900.00 | H59: 900.00 | I59: 900.00 | J59: 900.00 | K59: 900.00 | L59: 900.00 | M59: 900.00 | N59: 900.00 | O59: 900.00 | Q59: =SUM(Q56:Q58) -> 10,800.00
A60: Введите сведения в таблице «Прочие расходы», начиная с ячейки справа. Итого по прочим расходам за каждый месяц вычисляется автоматически внизу таблицы, а итог за год — в ячейке Q65. Спарклайн обновляется автоматически в ячейке S65. Следующие инструкции указаны в ячейке A67. | B60: Прочие расходы | C60: Ставка | D60: Месяц 1 | E60: Месяц 2 | F60: Месяц 3 | G60: Месяц 4 | H60: Месяц 5 | I60: Месяц 6 | J60: Месяц 7 | K60: Месяц 8 | L60: Месяц 9 | M60: Месяц 10 | N60: Месяц 11 | O60: Месяц 12
B61: ПРОЧИЕ РАСХОДЫ
B62: Поездки | D62: 50 | E62: 50 | F62: 50 | G62: 50 | H62: 50 | I62: 50 | J62: 50 | K62: 50 | L62: 50 | M62: 50 | N62: 50 | O62: 50 | Q62: =SUM('Бюджет канального маркетинга'!$D62:$O62) -> 600.00
B63: Инфраструктура (компьютер, телефон и т. д.) | D63: 250.00 | E63: 250.00 | F63: 250.00 | G63: 250.00 | H63: 250.00 | I63: 250.00 | J63: 250.00 | K63: 250.00 | L63: 250.00 | M63: 250.00 | N63: 250.00 | O63: 250.00 | Q63: =SUM('Бюджет канального маркетинга'!$D63:$O63) -> 3,000.00
B64: Поддержка канала | D64: 600 | E64: 600 | F64: 600 | G64: 600 | H64: 600 | I64: 600 | J64: 600 | K64: 600 | L64: 600 | M64: 600 | N64: 600 | O64: 600 | Q64: =SUM('Бюджет канального маркетинга'!$D64:$O64) -> 7,200.00
B65: Итого по прочим расходам (000) ₽ | D65: =SUM(D62:D64) -> 900.00 | E65: =SUM(E62:E64) -> 900.00 | F65: 900.00 | G65: 900.00 | H65: 900.00 | I65: 900.00 | J65: 900.00 | K65: 900.00 | L65: 900.00 | M65: 900.00 | N65: 900.00 | O65: 900.00 | Q65: =SUM(Q62:Q64) -> 10,800.00
A67: В этой строке итоговый маркетинговый бюджет вычисляется автоматически за каждый месяц в ячейках диапазона D67:O67, а годовой итог — в ячейке Q67. Спарклайн обновляется автоматически в ячейке S67. | B67: ИТОГОВЫЙ МАРКЕТИНГОВЫЙ БЮДЖЕТ: | D67: =SUM(ПрочиеРасходы[[#Totals],[Месяц 1]],Автомобиль[[#Totals],[Месяц 1]],РозничныйПродавец[[#Totals],[Месяц 1]],Дистрибьюторы[[#Totals],[Месяц 1]],АгентБрокер[[#Totals],[Месяц 1]],D31) -> 6,354.00 | E67: =SUM(ПрочиеРасходы[[#Totals],[Месяц 2]],Автомобиль[[#Totals],[Месяц 2]],РозничныйПродавец[[#Totals],[Месяц 2]],Дистрибьюторы[[#Totals],[Месяц 2]],АгентБрокер[[#Totals],[Месяц 2]],E31) -> 5,785.85 | F67: =SUM(ПрочиеРасходы[[#Totals],[Месяц 3]],Автомобиль[[#Totals],[Месяц 3]],РозничныйПродавец[[#Totals],[Месяц 3]],Дистрибьюторы[[#Totals],[Месяц 3]],АгентБрокер[[#Totals],[Месяц 3]],F31) -> 5,834.44 | G67: =SUM(ПрочиеРасходы[[#Totals],[Месяц 4]],Автомобиль[[#Totals],[Месяц 4]],РозничныйПродавец[[#Totals],[Месяц 4]],Дистрибьюторы[[#Totals],[Месяц 4]],АгентБрокер[[#Totals],[Месяц 4]],G31) -> 5,902.05 | H67: =SUM(ПрочиеРасходы[[#Totals],[Месяц 5]],Автомобиль[[#Totals],[Месяц 5]],РозничныйПродавец[[#Totals],[Месяц 5]],Дистрибьюторы[[#Totals],[Месяц 5]],АгентБрокер[[#Totals],[Месяц 5]],H31) -> 5,916.35 | I67: =SUM(ПрочиеРасходы[[#Totals],[Месяц 6]],Автомобиль[[#Totals],[Месяц 6]],РозничныйПродавец[[#Totals],[Месяц 6]],Дистрибьюторы[[#Totals],[Месяц 6]],АгентБрокер[[#Totals],[Месяц 6]],I31) -> 5,935.69 | J67: =SUM(ПрочиеРасходы[[#Totals],[Месяц 7]],Автомобиль[[#Totals],[Месяц 7]],РозничныйПродавец[[#Totals],[Месяц 7]],Дистрибьюторы[[#Totals],[Месяц 7]],АгентБрокер[[#Totals],[Месяц 7]],J31) -> 5,976.90 | K67: =SUM(ПрочиеРасходы[[#Totals],[Месяц 8]],Автомобиль[[#Totals],[Месяц 8]],РозничныйПродавец[[#Totals],[Месяц 8]],Дистрибьюторы[[#Totals],[Месяц 8]],АгентБрокер[[#Totals],[Месяц 8]],K31) -> 6,015.84 | L67: =SUM(ПрочиеРасходы[[#Totals],[Месяц 9]],Автомобиль[[#Totals],[Месяц 9]],РозничныйПродавец[[#Totals],[Месяц 9]],Дистрибьюторы[[#Totals],[Месяц 9]],АгентБрокер[[#Totals],[Месяц 9]],L31) -> 6,031.80 | M67: =SUM(ПрочиеРасходы[[#Totals],[Месяц 10]],Автомобиль[[#Totals],[Месяц 10]],РозничныйПродавец[[#Totals],[Месяц 10]],Дистрибьюторы[[#Totals],[Месяц 10]],АгентБрокер[[#Totals],[Месяц 10]],M31) -> 6,001.80 | N67: =SUM(ПрочиеРасходы[[#Totals],[Месяц 11]],Автомобиль[[#Totals],[Месяц 11]],РозничныйПродавец[[#Totals],[Месяц 11]],Дистрибьюторы[[#Totals],[Месяц 11]],АгентБрокер[[#Totals],[Месяц 11]],N31) -> 6,056.80 | O67: =SUM(ПрочиеРасходы[[#Totals],[Месяц 12]],Автомобиль[[#Totals],[Месяц 12]],РозничныйПродавец[[#Totals],[Месяц 12]],Дистрибьюторы[[#Totals],[Месяц 12]],АгентБрокер[[#Totals],[Месяц 12]],O31) -> 6,001.80 | Q67: =SUM(D67:O67) -> 71,813.31
